[Event "Titled Tuesday Blitz March 07 Late 2023"]
[White "Ezat, Mohamed"]
[Black "Carlsen, Magnus"]
[WhiteFideId "10600906"]
[BlackFideId "1503014"]
[WhiteElo "2386"]
[BlackElo "2852"]
[Result "0-1"]
[Round "01"]
[TimeControl "180+2"]
[Date "2023.03.07"]
[WhiteClock "0:00:41"]
[BlackClock "0:01:59"]

1. d4 {[%clk 0:02:51]}  g6 {[%clk 0:02:55]} 2. c4 {[%clk 0:02:51]}  Bg7 {[%clk 0:02:53]} 3. e4 {[%clk 0:02:51]}  e6 {[%clk 0:02:53]} 4. Nc3 {[%clk 0:02:50]}  Ne7 {[%clk 0:02:53]} 5. Be2 {[%clk 0:02:48]}  d5 {[%clk 0:02:52]} 6. cxd5 {[%clk 0:02:40]}  exd5 {[%clk 0:02:53]} 7. e5 {[%clk 0:02:39]}  c5 {[%clk 0:02:50]} 8. Nf3 {[%clk 0:02:38]}  cxd4 {[%clk 0:02:50]} 9. Nb5 {[%clk 0:02:32]}  O-O {[%clk 0:02:49]} 10. Nbxd4 {[%clk 0:02:31]}  Nbc6 {[%clk 0:02:49]} 11. Nxc6 {[%clk 0:02:26]}  Nxc6 {[%clk 0:02:48]} 12. O-O {[%clk 0:02:21]}  Nxe5 {[%clk 0:02:47]} 13. Nxe5 {[%clk 0:02:16]}  Bxe5 {[%clk 0:02:48]} 14. Bf3 {[%clk 0:02:16]}  Be6 {[%clk 0:02:48]} 15. Re1 {[%clk 0:02:13]}  Bg7 {[%clk 0:02:46]} 16. Be3 {[%clk 0:02:09]}  d4 {[%clk 0:02:44]} 17. Bf4 {[%clk 0:02:07]}  Qd7 {[%clk 0:02:41]} 18. Qd2 {[%clk 0:02:04]}  Bd5 {[%clk 0:02:41]} 19. Bxd5 {[%clk 0:02:00]}  Qxd5 {[%clk 0:02:41]} 20. Bh6 {[%clk 0:01:59]}  Rfe8 {[%clk 0:02:41]} 21. Bxg7 {[%clk 0:01:58]}  Kxg7 {[%clk 0:02:42]} 22. h3 {[%clk 0:01:58]}  Rad8 {[%clk 0:02:41]} 23. Rxe8 {[%clk 0:01:56]}  Rxe8 {[%clk 0:02:41]} 24. Rd1 {[%clk 0:01:57]}  Rd8 {[%clk 0:02:28]} 25. b3 {[%clk 0:01:56]}  h5 {[%clk 0:02:28]} 26. Qd3 {[%clk 0:01:53]}  a5 {[%clk 0:02:28]} 27. Rc1 {[%clk 0:01:53]}  b5 {[%clk 0:02:27]} 28. a4 {[%clk 0:01:49]}  bxa4 {[%clk 0:02:22]} 29. bxa4 {[%clk 0:01:48]}  Rb8 {[%clk 0:02:22]} 30. Rc4 {[%clk 0:01:30]}  Rb1+ {[%clk 0:02:20]} 31. Kh2 {[%clk 0:01:29]}  Rb4 {[%clk 0:02:19]} 32. Rxb4 {[%clk 0:01:22]}  Qd6+ {[%clk 0:02:19]} 33. g3 {[%clk 0:01:21]}  Qxb4 {[%clk 0:02:19]} 34. Qe4 {[%clk 0:01:18]}  Qxa4 {[%clk 0:02:12]} 35. Qe5+ {[%clk 0:01:18]}  Kg8 {[%clk 0:02:12]} 36. Qb8+ {[%clk 0:01:17]}  Kh7 {[%clk 0:02:11]} 37. Qf4 {[%clk 0:01:07]}  Qc4 {[%clk 0:02:11]} 38. g4 {[%clk 0:01:05]}  hxg4 {[%clk 0:02:08]} 39. hxg4 {[%clk 0:01:02]}  a4 {[%clk 0:02:07]} 40. Qd6 {[%clk 0:00:58]}  d3 {[%clk 0:02:04]} 41. Kg3 {[%clk 0:00:56]}  Qc3 {[%clk 0:02:03]} 42. Qe7 {[%clk 0:00:43]}  d2+ {[%clk 0:02:01]} 43. f3 {[%clk 0:00:41]}  d1=Q {[%clk 0:01:59]} 0-1


[Site "https://www.chess.com"]

[Event "Titled Tuesday Blitz March 07 Late 2023"]
[White "Petrovic, Aleksa"]
[Black "Naroditsky, Daniel"]
[WhiteFideId "967629"]
[BlackFideId "2026961"]
[WhiteElo "2326"]
[BlackElo "2633"]
[Result "1-0"]
[Round "01"]
[TimeControl "180+2"]
[Date "2023.03.07"]
[WhiteClock "0:00:09"]
[BlackClock "0:00:13"]

1. d4 {[%clk 0:02:10]}  Nf6 {[%clk 0:02:52]} 2. c4 {[%clk 0:02:09]}  g6 {[%clk 0:02:49]} 3. Nc3 {[%clk 0:02:03]}  Bg7 {[%clk 0:02:49]} 4. e4 {[%clk 0:02:03]}  d6 {[%clk 0:02:49]} 5. Nf3 {[%clk 0:02:02]}  O-O {[%clk 0:02:49]} 6. Be2 {[%clk 0:02:02]}  e5 {[%clk 0:02:50]} 7. O-O {[%clk 0:02:02]}  exd4 {[%clk 0:02:47]} 8. Nxd4 {[%clk 0:02:02]}  Re8 {[%clk 0:02:48]} 9. f3 {[%clk 0:02:02]}  c6 {[%clk 0:02:46]} 10. Kh1 {[%clk 0:02:01]}  Nbd7 {[%clk 0:02:45]} 11. Be3 {[%clk 0:02:00]}  d5 {[%clk 0:02:40]} 12. cxd5 {[%clk 0:01:49]}  cxd5 {[%clk 0:02:26]} 13. Ndb5 {[%clk 0:01:40]}  Nb6 {[%clk 0:02:23]} 14. Bf4 {[%clk 0:01:28]}  Nh5 {[%clk 0:02:22]} 15. Bc7 {[%clk 0:00:47]}  Qh4 {[%clk 0:02:22]} 16. Qe1 {[%clk 0:00:45]}  Qxe1 {[%clk 0:02:03]} 17. Raxe1 {[%clk 0:00:46]}  d4 {[%clk 0:02:03]} 18. Bxb6 {[%clk 0:00:36]}  dxc3 {[%clk 0:01:56]} 19. Nc7 {[%clk 0:00:33]}  axb6 {[%clk 0:01:55]} 20. Nxa8 {[%clk 0:00:29]}  cxb2 {[%clk 0:01:55]} 21. Nxb6 {[%clk 0:00:29]}  Be6 {[%clk 0:01:54]} 22. Bc4 {[%clk 0:00:28]}  Nf4 {[%clk 0:01:49]} 23. g3 {[%clk 0:00:19]}  Bxc4 {[%clk 0:01:30]} 24. Nxc4 {[%clk 0:00:20]}  Nd3 {[%clk 0:01:29]} 25. Rd1 {[%clk 0:00:17]}  Rd8 {[%clk 0:01:22]} 26. Rd2 {[%clk 0:00:14]}  b5 {[%clk 0:01:14]} 27. Nxb2 {[%clk 0:00:07]}  Bxb2 {[%clk 0:01:15]} 28. Rfd1 {[%clk 0:00:06]}  Nf2+ {[%clk 0:01:15]} 29. Kg2 {[%clk 0:00:07]}  Ra8 {[%clk 0:00:47]} 30. Rxf2 {[%clk 0:00:04]}  Bc3 {[%clk 0:00:46]} 31. Rc2 {[%clk 0:00:05]}  b4 {[%clk 0:00:46]} 32. Rb1 {[%clk 0:00:05]}  Kf8 {[%clk 0:00:44]} 33. Rb3 {[%clk 0:00:05]}  Ke7 {[%clk 0:00:43]} 34. a3 {[%clk 0:00:04]}  bxa3 {[%clk 0:00:44]} 35. Rcxc3 {[%clk 0:00:03]}  a2 {[%clk 0:00:44]} 36. Ra3 {[%clk 0:00:03]}  a1=Q {[%clk 0:00:45]} 37. Rxa1 {[%clk 0:00:03]}  Rxa1 {[%clk 0:00:46]} 38. Rc7+ {[%clk 0:00:03]}  Ke6 {[%clk 0:00:46]} 39. Rc6+ {[%clk 0:00:03]}  Kd7 {[%clk 0:00:46]} 40. Rc2 {[%clk 0:00:03]}  h5 {[%clk 0:00:45]} 41. Rd2+ {[%clk 0:00:03]}  Ke6 {[%clk 0:00:45]} 42. Kh3 {[%clk 0:00:03]}  Ra3 {[%clk 0:00:45]} 43. f4 {[%clk 0:00:03]}  Re3 {[%clk 0:00:44]} 44. e5 {[%clk 0:00:03]}  Ra3 {[%clk 0:00:44]} 45. Rd6+ {[%clk 0:00:03]}  Ke7 {[%clk 0:00:45]} 46. Kh4 {[%clk 0:00:03]}  Ra2 {[%clk 0:00:43]} 47. h3 {[%clk 0:00:03]}  Ra3 {[%clk 0:00:43]} 48. g4 {[%clk 0:00:03]}  hxg4 {[%clk 0:00:44]} 49. hxg4 {[%clk 0:00:04]}  Ra4 {[%clk 0:00:42]} 50. Kg5 {[%clk 0:00:04]}  Ra5 {[%clk 0:00:43]} 51. Rb6 {[%clk 0:00:04]}  Rc5 {[%clk 0:00:41]} 52. Rb7+ {[%clk 0:00:04]}  Ke6 {[%clk 0:00:38]} 53. f5+ {[%clk 0:00:04]}  gxf5 {[%clk 0:00:37]} 54. gxf5+ {[%clk 0:00:05]}  Kxe5 {[%clk 0:00:37]} 55. Rxf7 {[%clk 0:00:05]}  Rc1 {[%clk 0:00:35]} 56. Re7+ {[%clk 0:00:06]}  Kd6 {[%clk 0:00:36]} 57. Kf6 {[%clk 0:00:06]}  Rf1 {[%clk 0:00:33]} 58. Re2 {[%clk 0:00:05]}  Kd7 {[%clk 0:00:32]} 59. Kg6 {[%clk 0:00:05]}  Rg1+ {[%clk 0:00:26]} 60. Kf7 {[%clk 0:00:05]}  Rf1 {[%clk 0:00:19]} 61. f6 {[%clk 0:00:05]}  Rd1 {[%clk 0:00:19]} 62. Kg8 {[%clk 0:00:04]}  Rg1+ {[%clk 0:00:18]} 63. Kf8 {[%clk 0:00:04]}  Rf1 {[%clk 0:00:17]} 64. f7 {[%clk 0:00:04]}  Rf3 {[%clk 0:00:18]} 65. Re4 {[%clk 0:00:04]}  Rg3 {[%clk 0:00:15]} 66. Re1 {[%clk 0:00:04]}  Rd3 {[%clk 0:00:12]} 67. Rg1 {[%clk 0:00:03]}  Rf3 {[%clk 0:00:07]} 68. Kg8 {[%clk 0:00:03]}  Ke7 {[%clk 0:00:07]} 69. Re1+ {[%clk 0:00:03]}  Kd7 {[%clk 0:00:07]} 70. f8=Q {[%clk 0:00:04]}  Rg3+ {[%clk 0:00:07]} 71. Qg7+ {[%clk 0:00:05]}  Rxg7+ {[%clk 0:00:07]} 72. Kxg7 {[%clk 0:00:06]}  Kd6 {[%clk 0:00:08]} 73. Kf6 {[%clk 0:00:06]}  Kd5 {[%clk 0:00:09]} 74. Kf5 {[%clk 0:00:07]}  Kd4 {[%clk 0:00:10]} 75. Re5 {[%clk 0:00:07]}  Kd3 {[%clk 0:00:11]} 76. Re4 {[%clk 0:00:08]}  Kc3 {[%clk 0:00:11]} 77. Ke5 {[%clk 0:00:08]}  Kd3 {[%clk 0:00:12]} 78. Kd5 {[%clk 0:00:09]}  Kd2 {[%clk 0:00:12]} 79. Kd4 {[%clk 0:00:09]}  Kc2 {[%clk 0:00:13]} 80. Re2+ {[%clk 0:00:09]} 1-0


[Site "https://www.chess.com"]

[Event "Titled Tuesday Blitz March 07 Late 2023"]
[White "Vachier-Lagrave, Maxime"]
[Black "Dragomirescu, Angela"]
[WhiteFideId "623539"]
[BlackFideId "1209914"]
[WhiteElo "2740"]
[BlackElo "2171"]
[Result "1-0"]
[Round "01"]
[TimeControl "180+2"]
[Date "2023.03.07"]
[WhiteClock "0:00:34"]
[BlackClock "0:00:14"]

1. c4 {[%clk 0:02:56]}  Nf6 {[%clk 0:02:59]} 2. Nc3 {[%clk 0:02:55]}  e6 {[%clk 0:03:00]} 3. e4 {[%clk 0:02:53]}  c5 {[%clk 0:03:00]} 4. e5 {[%clk 0:02:52]}  Ng8 {[%clk 0:03:01]} 5. Nf3 {[%clk 0:02:52]}  Nc6 {[%clk 0:03:00]} 6. d4 {[%clk 0:02:52]}  cxd4 {[%clk 0:03:01]} 7. Nxd4 {[%clk 0:02:53]}  Nxe5 {[%clk 0:03:02]} 8. Ndb5 {[%clk 0:02:53]}  a6 {[%clk 0:03:02]} 9. Nd6+ {[%clk 0:02:53]}  Bxd6 {[%clk 0:03:03]} 10. Qxd6 {[%clk 0:02:53]}  f6 {[%clk 0:03:04]} 11. Be2 {[%clk 0:02:52]}  Ne7 {[%clk 0:03:03]} 12. O-O {[%clk 0:02:50]}  O-O {[%clk 0:02:58]} 13. b3 {[%clk 0:02:42]}  Nf5 {[%clk 0:02:34]} 14. Qd2 {[%clk 0:02:40]}  d5 {[%clk 0:02:28]} 15. cxd5 {[%clk 0:02:37]}  exd5 {[%clk 0:02:29]} 16. Nxd5 {[%clk 0:02:38]}  Be6 {[%clk 0:02:30]} 17. Nf4 {[%clk 0:02:37]}  Qxd2 {[%clk 0:02:31]} 18. Bxd2 {[%clk 0:02:38]}  Bf7 {[%clk 0:02:28]} 19. Rfd1 {[%clk 0:02:28]}  Rac8 {[%clk 0:02:07]} 20. Ba5 {[%clk 0:02:15]}  Rfe8 {[%clk 0:02:02]} 21. Rd2 {[%clk 0:02:09]}  Nc6 {[%clk 0:01:49]} 22. Bb6 {[%clk 0:02:03]}  Re4 {[%clk 0:01:41]} 23. g3 {[%clk 0:02:02]}  Nfd4 {[%clk 0:01:37]} 24. Bd1 {[%clk 0:01:40]}  Re1+ {[%clk 0:01:32]} 25. Kg2 {[%clk 0:01:39]}  Nb5 {[%clk 0:01:11]} 26. Nd3 {[%clk 0:01:31]}  Ree8 {[%clk 0:01:06]} 27. Bg4 {[%clk 0:01:26]}  Be6 {[%clk 0:01:06]} 28. Bf3 {[%clk 0:01:15]}  Ncd4 {[%clk 0:00:54]} 29. Bxd4 {[%clk 0:01:13]}  Nxd4 {[%clk 0:00:55]} 30. Bxb7 {[%clk 0:01:13]}  Rb8 {[%clk 0:00:56]} 31. Nc5 {[%clk 0:01:10]}  Nb5 {[%clk 0:00:20]} 32. Bxa6 {[%clk 0:01:07]}  Nc7 {[%clk 0:00:20]} 33. Nxe6 {[%clk 0:01:06]}  Nxa6 {[%clk 0:00:20]} 34. Rd6 {[%clk 0:01:00]}  Nb4 {[%clk 0:00:20]} 35. a3 {[%clk 0:00:48]}  Nc2 {[%clk 0:00:20]} 36. Rc1 {[%clk 0:00:49]}  Nxa3 {[%clk 0:00:20]} 37. Rc7 {[%clk 0:00:49]}  g6 {[%clk 0:00:19]} 38. Nd4 {[%clk 0:00:40]}  Nb5 {[%clk 0:00:18]} 39. Nxb5 {[%clk 0:00:40]}  Rxb5 {[%clk 0:00:19]} 40. Rdd7 {[%clk 0:00:38]}  Rh5 {[%clk 0:00:18]} 41. b4 {[%clk 0:00:34]}  Rb8 {[%clk 0:00:18]} 42. b5 {[%clk 0:00:33]}  Rhxb5 {[%clk 0:00:16]} 43. Rg7+ {[%clk 0:00:33]}  Kf8 {[%clk 0:00:14]} 44. Rxh7 {[%clk 0:00:33]}  Kg8 {[%clk 0:00:15]} 45. Rcg7+ {[%clk 0:00:33]}  Kf8 {[%clk 0:00:14]} 46. Rxg6 {[%clk 0:00:34]} 1-0


[Site "https://www.chess.com"]

[Event "Titled Tuesday Blitz March 07 Late 2023"]
[White "Zirkelbach, Maj"]
[Black "Duda, Jan-Krzysztof"]
[WhiteFideId "14613395"]
[BlackFideId "1170546"]
[WhiteElo "2138"]
[BlackElo "2790"]
[Result "0-1"]
[Round "01"]
[TimeControl "180+2"]
[Date "2023.03.07"]
[WhiteClock "0:00:14"]
[BlackClock "0:00:13"]

1. d4 {[%clk 0:02:57]}  e6 {[%clk 0:01:14]} 2. c4 {[%clk 0:02:54]}  Bb4+ {[%clk 0:01:12]} 3. Bd2 {[%clk 0:02:44]}  a5 {[%clk 0:01:11]} 4. Nf3 {[%clk 0:02:43]}  d6 {[%clk 0:01:08]} 5. g3 {[%clk 0:02:42]}  Nc6 {[%clk 0:01:06]} 6. Bg2 {[%clk 0:02:42]}  e5 {[%clk 0:01:06]} 7. Bxb4 {[%clk 0:02:00]}  axb4 {[%clk 0:01:04]} 8. dxe5 {[%clk 0:01:59]}  dxe5 {[%clk 0:01:00]} 9. Qxd8+ {[%clk 0:01:59]}  Kxd8 {[%clk 0:01:01]} 10. Nbd2 {[%clk 0:01:55]}  Nf6 {[%clk 0:00:57]} 11. e3 {[%clk 0:01:32]}  Ke7 {[%clk 0:00:58]} 12. O-O {[%clk 0:01:30]}  Rd8 {[%clk 0:00:58]} 13. Rfd1 {[%clk 0:01:27]}  e4 {[%clk 0:00:57]} 14. Nd4 {[%clk 0:00:35]}  Nxd4 {[%clk 0:00:57]} 15. exd4 {[%clk 0:00:36]}  Rxd4 {[%clk 0:00:57]} 16. Nxe4 {[%clk 0:00:36]}  Rxd1+ {[%clk 0:00:54]} 17. Rxd1 {[%clk 0:00:36]}  Nxe4 {[%clk 0:00:54]} 18. Bxe4 {[%clk 0:00:35]}  Rxa2 {[%clk 0:00:54]} 19. Rd2 {[%clk 0:00:31]}  h6 {[%clk 0:00:46]} 20. f4 {[%clk 0:00:31]}  c6 {[%clk 0:00:44]} 21. Kf2 {[%clk 0:00:31]}  Be6 {[%clk 0:00:44]} 22. Bd3 {[%clk 0:00:24]}  g6 {[%clk 0:00:44]} 23. Ke3 {[%clk 0:00:24]}  b6 {[%clk 0:00:43]} 24. Kd4 {[%clk 0:00:23]}  c5+ {[%clk 0:00:42]} 25. Ke3 {[%clk 0:00:23]}  Ra1 {[%clk 0:00:41]} 26. Re2 {[%clk 0:00:21]}  Rd1 {[%clk 0:00:37]} 27. b3 {[%clk 0:00:15]}  Bg4 {[%clk 0:00:27]} 28. Rd2 {[%clk 0:00:13]}  Re1+ {[%clk 0:00:27]} 29. Kf2 {[%clk 0:00:13]}  Rc1 {[%clk 0:00:28]} 30. Rc2 {[%clk 0:00:13]}  Rb1 {[%clk 0:00:22]} 31. Re2+ {[%clk 0:00:13]}  Bxe2 {[%clk 0:00:21]} 32. Bxb1 {[%clk 0:00:13]}  Bd1 {[%clk 0:00:21]} 33. Ba2 {[%clk 0:00:14]}  Kf6 {[%clk 0:00:18]} 34. Ke3 {[%clk 0:00:14]}  Bc2 {[%clk 0:00:17]} 35. Kd2 {[%clk 0:00:14]}  Bf5 {[%clk 0:00:18]} 36. Ke3 {[%clk 0:00:14]}  g5 {[%clk 0:00:18]} 37. Kf3 {[%clk 0:00:14]}  Bc2 {[%clk 0:00:16]} 38. Ke3 {[%clk 0:00:13]}  Kf5 {[%clk 0:00:14]} 39. Kd2 {[%clk 0:00:13]}  Be4 {[%clk 0:00:13]} 40. Ke3 {[%clk 0:00:14]}  gxf4+ {[%clk 0:00:13]} 41. gxf4 {[%clk 0:00:14]}  h5 {[%clk 0:00:13]} 42. h4 {[%clk 0:00:14]}  f6 {[%clk 0:00:13]} 0-1


[Site "https://www.chess.com"]

[Event "Titled Tuesday Blitz March 07 Late 2023"]
[White "Andreikin, Dmitry"]
[Black "Wartiovaara, Oliver"]
[WhiteFideId "4158814"]
[BlackFideId "513024"]
[WhiteElo "2736"]
[BlackElo "2214"]
[Result "1-0"]
[Round "01"]
[TimeControl "180+2"]
[Date "2023.03.07"]
[WhiteClock "0:01:40"]
[BlackClock "0:00:47"]

1. e4 {[%clk 0:02:59]}  d5 {[%clk 0:02:52]} 2. exd5 {[%clk 0:02:59]}  Qxd5 {[%clk 0:02:53]} 3. Nf3 {[%clk 0:02:59]}  Bg4 {[%clk 0:02:52]} 4. Be2 {[%clk 0:02:57]}  Nc6 {[%clk 0:02:52]} 5. O-O {[%clk 0:02:57]}  O-O-O {[%clk 0:02:52]} 6. h3 {[%clk 0:02:56]}  Bxf3 {[%clk 0:02:51]} 7. Bxf3 {[%clk 0:02:57]}  Qd7 {[%clk 0:02:51]} 8. c3 {[%clk 0:02:55]}  Nf6 {[%clk 0:02:49]} 9. d4 {[%clk 0:02:54]}  e5 {[%clk 0:02:47]} 10. dxe5 {[%clk 0:02:54]}  Nxe5 {[%clk 0:02:45]} 11. Qxd7+ {[%clk 0:02:53]}  Rxd7 {[%clk 0:02:45]} 12. Be2 {[%clk 0:02:53]}  Bc5 {[%clk 0:02:40]} 13. Nd2 {[%clk 0:02:43]}  Nd3 {[%clk 0:02:36]} 14. Nb3 {[%clk 0:02:38]}  Nxc1 {[%clk 0:02:23]} 15. Raxc1 {[%clk 0:02:36]}  Bb6 {[%clk 0:02:23]} 16. Bf3 {[%clk 0:02:31]}  Re8 {[%clk 0:02:20]} 17. Rfd1 {[%clk 0:02:28]}  c6 {[%clk 0:02:17]} 18. Kf1 {[%clk 0:02:27]}  Red8 {[%clk 0:02:14]} 19. Rxd7 {[%clk 0:02:24]}  Kxd7 {[%clk 0:02:14]} 20. Nd2 {[%clk 0:02:22]}  Ke7 {[%clk 0:02:12]} 21. Nc4 {[%clk 0:02:20]}  Bc7 {[%clk 0:02:12]} 22. a4 {[%clk 0:02:16]}  a5 {[%clk 0:01:58]} 23. g3 {[%clk 0:02:16]}  g6 {[%clk 0:01:57]} 24. Ke2 {[%clk 0:02:15]}  h5 {[%clk 0:01:56]} 25. b4 {[%clk 0:02:15]}  axb4 {[%clk 0:01:51]} 26. cxb4 {[%clk 0:02:16]}  Nd5 {[%clk 0:01:48]} 27. b5 {[%clk 0:02:15]}  cxb5 {[%clk 0:01:47]} 28. Ne3 {[%clk 0:02:09]}  Nxe3 {[%clk 0:01:28]} 29. Rxc7+ {[%clk 0:02:08]}  Kd6 {[%clk 0:01:27]} 30. Rxb7 {[%clk 0:02:08]}  Nf5 {[%clk 0:01:23]} 31. axb5 {[%clk 0:02:07]}  Nd4+ {[%clk 0:01:14]} 32. Ke3 {[%clk 0:02:06]}  Nxf3 {[%clk 0:01:12]} 33. Kxf3 {[%clk 0:02:07]}  Ke6 {[%clk 0:01:11]} 34. Ke3 {[%clk 0:01:51]}  Kf6 {[%clk 0:01:10]} 35. Rb6+ {[%clk 0:01:49]}  Kg7 {[%clk 0:01:08]} 36. Rc6 {[%clk 0:01:48]}  Rd5 {[%clk 0:01:05]} 37. b6 {[%clk 0:01:46]}  Rb5 {[%clk 0:01:05]} 38. Kd4 {[%clk 0:01:44]}  Rb2 {[%clk 0:01:01]} 39. Kc5 {[%clk 0:01:44]}  Rc2+ {[%clk 0:00:57]} 40. Kd6 {[%clk 0:01:44]}  Rxf2 {[%clk 0:00:55]} 41. b7 {[%clk 0:01:43]}  Rb2 {[%clk 0:00:52]} 42. Kc7 {[%clk 0:01:43]}  Rxb7+ {[%clk 0:00:50]} 43. Kxb7 {[%clk 0:01:44]}  h4 {[%clk 0:00:48]} 44. gxh4 {[%clk 0:01:42]}  Kh6 {[%clk 0:00:46]} 45. Rf6 {[%clk 0:01:40]}  Kg7 {[%clk 0:00:46]} 46. Rf4 {[%clk 0:01:40]}  f5 {[%clk 0:00:47]} 47. h5 {[%clk 0:01:40]} 1-0


[Site "https://www.chess.com"]

[Event "Titled Tuesday Blitz March 07 Late 2023"]
[White "Fedoseev, Vladimir"]
[Black "Erzhanov, Arman"]
[WhiteFideId "24130737"]
[BlackFideId "4138821"]
[WhiteElo "2752"]
[BlackElo "2138"]
[Result "1-0"]
[Round "01"]
[TimeControl "180+2"]
[Date "2023.03.07"]
[WhiteClock "0:00:37"]
[BlackClock "0:00:02"]

1. e4 {[%clk 0:02:59]}  d6 {[%clk 0:03:00]} 2. d4 {[%clk 0:02:59]}  Nf6 {[%clk 0:03:00]} 3. Nc3 {[%clk 0:02:59]}  c6 {[%clk 0:03:01]} 4. Nf3 {[%clk 0:02:58]}  Bg4 {[%clk 0:03:00]} 5. h3 {[%clk 0:02:56]}  Bh5 {[%clk 0:03:00]} 6. g4 {[%clk 0:02:53]}  Bg6 {[%clk 0:03:00]} 7. Bd3 {[%clk 0:02:52]}  d5 {[%clk 0:02:53]} 8. e5 {[%clk 0:02:48]}  Bxd3 {[%clk 0:02:46]} 9. Qxd3 {[%clk 0:02:47]}  Ng8 {[%clk 0:02:39]} 10. e6 {[%clk 0:02:41]}  f6 {[%clk 0:02:26]} 11. Bf4 {[%clk 0:02:37]}  Na6 {[%clk 0:02:23]} 12. O-O-O {[%clk 0:02:36]}  Qa5 {[%clk 0:02:22]} 13. a3 {[%clk 0:02:27]}  O-O-O {[%clk 0:02:21]} 14. h4 {[%clk 0:02:22]}  g6 {[%clk 0:02:21]} 15. h5 {[%clk 0:02:11]}  Bh6 {[%clk 0:02:08]} 16. g5 {[%clk 0:01:40]}  fxg5 {[%clk 0:02:04]} 17. Bxg5 {[%clk 0:01:40]}  Qc7 {[%clk 0:01:40]} 18. hxg6 {[%clk 0:01:25]}  hxg6 {[%clk 0:01:34]} 19. Kb1 {[%clk 0:01:23]}  Rf8 {[%clk 0:01:11]} 20. Ne5 {[%clk 0:01:22]}  Bxg5 {[%clk 0:00:45]} 21. Rxh8 {[%clk 0:01:21]}  Bf6 {[%clk 0:00:46]} 22. Nxg6 {[%clk 0:01:21]}  Bxh8 {[%clk 0:00:46]} 23. Nxf8 {[%clk 0:01:21]}  Qf4 {[%clk 0:00:36]} 24. Ng6 {[%clk 0:01:17]}  Qh6 {[%clk 0:00:34]} 25. f4 {[%clk 0:01:10]}  Bg7 {[%clk 0:00:25]} 26. f5 {[%clk 0:01:10]}  Qg5 {[%clk 0:00:24]} 27. Ne2 {[%clk 0:00:56]}  Nh6 {[%clk 0:00:24]} 28. Rf1 {[%clk 0:00:52]}  Nc7 {[%clk 0:00:20]} 29. Qg3 {[%clk 0:00:52]}  Qf6 {[%clk 0:00:10]} 30. Qe5 {[%clk 0:00:48]}  Qxe5 {[%clk 0:00:04]} 31. dxe5 {[%clk 0:00:47]}  c5 {[%clk 0:00:03]} 32. Nxe7+ {[%clk 0:00:46]}  Kd8 {[%clk 0:00:03]} 33. Ng6 {[%clk 0:00:46]}  Ke8 {[%clk 0:00:03]} 34. f6 {[%clk 0:00:44]}  Bf8 {[%clk 0:00:03]} 35. Nef4 {[%clk 0:00:40]}  Ng4 {[%clk 0:00:02]} 36. f7+ {[%clk 0:00:37]} 1-0


[Site "https://www.chess.com"]

[Event "Titled Tuesday Blitz March 07 Late 2023"]
[White "Ronka, Erik"]
[Black "Matlakov, Maxim"]
[WhiteFideId "505080"]
[BlackFideId "4168003"]
[WhiteElo "2264"]
[BlackElo "2666"]
[Result "0-1"]
[Round "01"]
[TimeControl "180+2"]
[Date "2023.03.07"]
[WhiteClock "0:00:01"]
[BlackClock "0:00:47"]

1. e4 {[%clk 0:02:55]}  e5 {[%clk 0:02:59]} 2. Nc3 {[%clk 0:02:50]}  Nf6 {[%clk 0:02:59]} 3. Bc4 {[%clk 0:02:50]}  Bc5 {[%clk 0:02:56]} 4. f4 {[%clk 0:02:50]}  d6 {[%clk 0:02:49]} 5. Nf3 {[%clk 0:02:51]}  Nc6 {[%clk 0:02:48]} 6. d3 {[%clk 0:02:51]}  O-O {[%clk 0:02:44]} 7. f5 {[%clk 0:02:42]}  Nd4 {[%clk 0:02:41]} 8. Nxd4 {[%clk 0:02:14]}  Bxd4 {[%clk 0:02:42]} 9. Qf3 {[%clk 0:02:14]}  c6 {[%clk 0:02:41]} 10. Bg5 {[%clk 0:02:12]}  b5 {[%clk 0:02:40]} 11. Bb3 {[%clk 0:02:12]}  a5 {[%clk 0:02:40]} 12. a4 {[%clk 0:02:11]}  b4 {[%clk 0:02:34]} 13. Nd1 {[%clk 0:02:10]}  d5 {[%clk 0:02:29]} 14. exd5 {[%clk 0:01:58]}  cxd5 {[%clk 0:02:27]} 15. Bxf6 {[%clk 0:01:55]}  Qxf6 {[%clk 0:02:27]} 16. Bxd5 {[%clk 0:01:54]}  Ra7 {[%clk 0:02:25]} 17. c3 {[%clk 0:01:40]}  bxc3 {[%clk 0:02:24]} 18. bxc3 {[%clk 0:01:41]}  Bc5 {[%clk 0:02:11]} 19. Be4 {[%clk 0:01:38]}  Rc7 {[%clk 0:01:39]} 20. c4 {[%clk 0:01:11]}  Bb4+ {[%clk 0:01:25]} 21. Ke2 {[%clk 0:01:05]}  Bd7 {[%clk 0:01:14]} 22. Ne3 {[%clk 0:01:04]}  Rcc8 {[%clk 0:01:11]} 23. Nd5 {[%clk 0:01:02]}  Qh6 {[%clk 0:01:07]} 24. Rad1 {[%clk 0:00:45]}  Bxa4 {[%clk 0:01:05]} 25. f6 {[%clk 0:00:33]}  Bxd1+ {[%clk 0:01:04]} 26. Rxd1 {[%clk 0:00:34]}  g6 {[%clk 0:01:02]} 27. h4 {[%clk 0:00:12]}  Rb8 {[%clk 0:01:00]} 28. g4 {[%clk 0:00:11]}  Bc5 {[%clk 0:01:00]} 29. Rd2 {[%clk 0:00:06]}  Qxh4 {[%clk 0:00:58]} 30. Ne7+ {[%clk 0:00:01]}  Bxe7 {[%clk 0:00:52]} 31. fxe7 {[%clk 0:00:02]}  Qxe7 {[%clk 0:00:52]} 32. Bd5 {[%clk 0:00:03]}  Rb1 {[%clk 0:00:50]} 33. Qe4 {[%clk 0:00:03]}  Qh4 {[%clk 0:00:49]} 34. Kf3 {[%clk 0:00:03]}  Re1 {[%clk 0:00:47]} 35. Re2 {[%clk 0:00:02]}  Rf1+ {[%clk 0:00:48]} 36. Ke3 {[%clk 0:00:01]}  Qg5+ {[%clk 0:00:47]} 0-1


[Site "https://www.chess.com"]